[Event "Late-Titled-Tuesday-Blitz-March-19-2024"]
[Site "Chess.com"]
[Date "2024.03.19"]
[Round "1"]
[White "BigAl"]
[Black "MetiForce"]
[Result "0-1"]
[WhiteElo "2522"]
[BlackElo "2920"]
[TimeControl "180+1"]
[EndTime "14:08:55 PDT"]
[Termination "MetiForce won by resignation"]

1. Nf3 {[%clk 0:02:58.7]} 1... d5 {[%clk 0:02:28.8]} 2. g3 {[%clk 0:02:58.3]}
2... c5 {[%clk 0:02:29]} 3. Bg2 {[%clk 0:02:59.2]} 3... Nc6 {[%clk 0:02:29.4]}
4. O-O {[%clk 0:03:00.1]} 4... Nf6 {[%clk 0:02:29.5]} 5. d3 {[%clk 0:03:01]}
5... e5 {[%clk 0:02:28.8]} 6. Nbd2 {[%clk 0:02:55.6]} 6... Be7 {[%clk
0:02:27.9]} 7. e4 {[%clk 0:02:55.9]} 7... d4 {[%clk 0:02:28.1]} 8. a4 {[%clk
0:02:55.4]} 8... O-O {[%clk 0:02:27.8]} 9. Nc4 {[%clk 0:02:56.3]} 9... Qc7
{[%clk 0:02:27.5]} 10. Nh4 {[%clk 0:02:56.4]} 10... Be6 {[%clk 0:02:18.1]} 11.
Nf5 {[%clk 0:02:56.6]} 11... Rfe8 {[%clk 0:02:06.8]} 12. Nxe7+ {[%clk
0:02:55.7]} 12... Qxe7 {[%clk 0:02:05]} 13. b3 {[%clk 0:02:51.8]} 13... h6
{[%clk 0:02:04.3]} 14. f4 {[%clk 0:02:48.1]} 14... exf4 {[%clk 0:02:01.2]} 15.
gxf4 {[%clk 0:02:49]} 15... Nh7 {[%clk 0:01:57.9]} 16. Kh1 {[%clk 0:02:46.7]}
16... a6 {[%clk 0:01:51.6]} 17. Rg1 {[%clk 0:02:38.1]} 17... Kh8 {[%clk
0:01:48.9]} 18. Nb6 {[%clk 0:02:35.6]} 18... Rad8 {[%clk 0:01:47.6]} 19. f5
{[%clk 0:02:36.2]} 19... Bc8 {[%clk 0:01:46.9]} 20. Nd5 {[%clk 0:02:36]} 20...
Qh4 {[%clk 0:01:44.1]} 21. Bd2 {[%clk 0:02:27.3]} 21... Ne5 {[%clk 0:01:42.9]}
22. Be1 {[%clk 0:02:24.5]} 22... Qg4 {[%clk 0:01:42.3]} 23. h3 {[%clk
0:02:11.3]} 23... Qxd1 {[%clk 0:01:42]} 24. Rxd1 {[%clk 0:02:12.2]} 24... Bd7
{[%clk 0:01:04.3]} 25. a5 {[%clk 0:02:11.4]} 25... Bc6 {[%clk 0:01:04.3]} 26.
Nf4 {[%clk 0:01:54.2]} 26... Ng5 {[%clk 0:00:52]} 27. Rf1 {[%clk 0:01:54.4]}
27... Kg8 {[%clk 0:00:47]} 28. Bd2 {[%clk 0:01:40.8]} 28... Nh7 {[%clk
0:00:39.6]} 29. Nh5 {[%clk 0:01:39.7]} 29... f6 {[%clk 0:00:37]} 30. Nf4 {[%clk
0:01:34]} 30... Rd7 {[%clk 0:00:35]} 31. h4 {[%clk 0:01:34.3]} 31... Nf8 {[%clk
0:00:34.8]} 32. Rf2 {[%clk 0:01:28.3]} 32... Ng4 {[%clk 0:00:34.1]} 33. Re2
{[%clk 0:01:28]} 33... Ne5 {[%clk 0:00:32.8]} 34. Rg1 {[%clk 0:01:28.2]} 34...
Kf7 {[%clk 0:00:31.6]} 35. Rf2 {[%clk 0:01:24.9]} 35... Ree7 {[%clk 0:00:29.4]}
36. Bh3 {[%clk 0:01:20.6]} 36... Ke8 {[%clk 0:00:26.5]} 37. Kh2 {[%clk
0:01:21.1]} 37... Rd8 {[%clk 0:00:20.5]} 38. Bf1 {[%clk 0:01:21.1]} 38... Rdd7
{[%clk 0:00:17.4]} 39. Be2 {[%clk 0:01:21.6]} 39... Kd8 {[%clk 0:00:16.6]} 40.
Rfg2 {[%clk 0:01:21.4]} 40... Kc7 {[%clk 0:00:15.9]} 41. Nh5 {[%clk 0:01:21.8]}
41... g6 {[%clk 0:00:06.3]} 42. Nxf6 {[%clk 0:01:15.3]} 42... Rd6 {[%clk
0:00:06]} 43. Ng8 {[%clk 0:01:09]} 43... Rh7 {[%clk 0:00:06.3]} 44. Nxh6 {[%clk
0:01:08.3]} 44... gxf5 {[%clk 0:00:03.8]} 45. Nxf5 {[%clk 0:01:08.8]} 45... Re6
{[%clk 0:00:03.3]} 46. Rg7+ {[%clk 0:01:08.1]} 46... Rxg7 {[%clk 0:00:03.4]} 47.
Rxg7+ {[%clk 0:01:09]} 47... Bd7 {[%clk 0:00:04.1]} 48. Bf4 {[%clk 0:01:08.6]}
48... Kc6 {[%clk 0:00:03.7]} 49. Ne7+ {[%clk 0:01:03.8]} 49... Kb5 {[%clk
0:00:03.9]} 50. h5 {[%clk 0:00:55.7]} 50... Nc6 {[%clk 0:00:03]} 51. Nd5 {[%clk
0:00:52.7]} 51... Kxa5 {[%clk 0:00:01.8]} 52. Bd2+ {[%clk 0:00:48]} 52... Nb4
{[%clk 0:00:01.9]} 53. Rf7 {[%clk 0:00:47.6]} 53... Re8 {[%clk 0:00:01.9]} 54.
h6 {[%clk 0:00:42.8]} 54... Be6 {[%clk 0:00:02.5]} 55. Rxb7 {[%clk 0:00:41.5]}
55... Bxd5 {[%clk 0:00:02.9]} 56. exd5 {[%clk 0:00:41.7]} 56... Rxe2+ {[%clk
0:00:03.6]} 57. Kg3 {[%clk 0:00:41.3]} 57... Rxd2 {[%clk 0:00:04.5]} 58. Rf7
{[%clk 0:00:40]} 58... Ng6 {[%clk 0:00:04.3]} 59. Rg7 {[%clk 0:00:38.6]} 59...
Rd1 {[%clk 0:00:05]} 60. Kf2 {[%clk 0:00:37.5]} 60... Ne5 {[%clk 0:00:03.4]} 61.
Rg5 {[%clk 0:00:32.6]} 61... Rh1 {[%clk 0:00:02.4]} 62. Rxe5 {[%clk 0:00:29.6]}
62... Rxh6 {[%clk 0:00:03.1]} 63. Re6 {[%clk 0:00:29.7]} 63... Rh7 {[%clk
0:00:02.5]} 64. d6 {[%clk 0:00:30.2]} 64... Rd7 {[%clk 0:00:03.2]} 65. Kf3
{[%clk 0:00:30.3]} 65... Kb5 {[%clk 0:00:03.8]} 66. Ke4 {[%clk 0:00:31.2]} 66...
Kc6 {[%clk 0:00:04.5]} 67. Ke5 {[%clk 0:00:31.5]} 67... Nxc2 {[%clk 0:00:04.7]}
68. Rh6 {[%clk 0:00:31.5]} 68... Nb4 {[%clk 0:00:05.2]} 69. Rh3 {[%clk 0:00:31]}
69... Rxd6 {[%clk 0:00:05.1]} 70. Rh8 {[%clk 0:00:30.3]} 70... Nxd3+ {[%clk
0:00:05.3]} 71. Ke4 {[%clk 0:00:30.8]} 71... Nb4 {[%clk 0:00:05.9]} 72. Rc8+
{[%clk 0:00:30.8]} 72... Kb6 {[%clk 0:00:06.3]} 73. Ke5 {[%clk 0:00:30.9]} 73...
Rd7 {[%clk 0:00:06.5]} 74. Rb8+ {[%clk 0:00:29.5]} 74... Rb7 {[%clk 0:00:07]}
75. Rd8 {[%clk 0:00:29.6]} 75... Nc6+ {[%clk 0:00:07.4]} 76. Kd6 {[%clk
0:00:29.4]} 76... Nxd8 {[%clk 0:00:08.3]} 0-1

[Event "Late-Titled-Tuesday-Blitz-March-19-2024"]
[Site "Chess.com"]
[Date "2024.03.19"]
[Round "1"]
[White "Der_Balak_3Halak"]
[Black "Lennis93"]
[Result "0-1"]
[WhiteElo "2415"]
[BlackElo "2738"]
[TimeControl "180+1"]
[EndTime "14:08:57 PDT"]
[Termination "Lennis93 won by resignation"]

1. e4 {[%clk 0:02:59.8]} 1... c5 {[%clk 0:02:59.8]} 2. Nf3 {[%clk 0:02:59.7]}
2... d6 {[%clk 0:03:00.5]} 3. Bb5+ {[%clk 0:03:00.1]} 3... Bd7 {[%clk
0:03:00.3]} 4. Bxd7+ {[%clk 0:03:00.5]} 4... Nxd7 {[%clk 0:03:00.7]} 5. O-O
{[%clk 0:03:01.4]} 5... Ngf6 {[%clk 0:03:00.4]} 6. Re1 {[%clk 0:03:02]} 6... e6
{[%clk 0:03:00.2]} 7. c3 {[%clk 0:03:02.2]} 7... Be7 {[%clk 0:02:58.8]} 8. d4
{[%clk 0:03:02.7]} 8... cxd4 {[%clk 0:02:43.8]} 9. cxd4 {[%clk 0:03:03.6]} 9...
d5 {[%clk 0:02:44.3]} 10. e5 {[%clk 0:03:03.5]} 10... Ne4 {[%clk 0:02:44.5]} 11.
Qd3 {[%clk 0:03:02.5]} 11... Rc8 {[%clk 0:02:39.7]} 12. Nbd2 {[%clk 0:03:02]}
12... Bb4 {[%clk 0:02:38.2]} 13. a3 {[%clk 0:02:56.5]} 13... Bxd2 {[%clk
0:02:37.4]} 14. Nxd2 {[%clk 0:02:55.4]} 14... Nxd2 {[%clk 0:02:35.2]} 15. Bxd2
{[%clk 0:02:56.3]} 15... O-O {[%clk 0:02:34.5]} 16. Rac1 {[%clk 0:02:52.5]}
16... Qb6 {[%clk 0:02:30.1]} 17. Bb4 {[%clk 0:02:48.3]} 17... Rfe8 {[%clk
0:02:29.7]} 18. Qd2 {[%clk 0:02:40.7]} 18... Nb8 {[%clk 0:02:24]} 19. Rxc8
{[%clk 0:02:38.3]} 19... Rxc8 {[%clk 0:02:23.2]} 20. Rc1 {[%clk 0:02:38.9]}
20... Rxc1+ {[%clk 0:02:21.4]} 21. Qxc1 {[%clk 0:02:39.8]} 21... Nc6 {[%clk
0:02:21.7]} 22. Bc5 {[%clk 0:02:31.9]} 22... Qb3 {[%clk 0:02:21.6]} 23. h3
{[%clk 0:02:15.4]} 23... h6 {[%clk 0:02:21.3]} 24. Qc3 {[%clk 0:02:11.5]} 24...
Qxc3 {[%clk 0:01:40.9]} 25. bxc3 {[%clk 0:02:12.4]} 25... b6 {[%clk 0:01:39.1]}
26. Bb4 {[%clk 0:02:05.3]} 26... f6 {[%clk 0:01:34.6]} 27. f4 {[%clk 0:02:03.2]}
27... Kf7 {[%clk 0:01:25.8]} 28. Kf2 {[%clk 0:02:03.1]} 28... Kg6 {[%clk
0:00:49.7]} 29. Ke3 {[%clk 0:02:01.9]} 29... h5 {[%clk 0:00:46.2]} 30. g4 {[%clk
0:02:01.5]} 30... f5 {[%clk 0:00:44.7]} 31. g5 {[%clk 0:01:57.6]} 31... Kf7
{[%clk 0:00:39.7]} 32. a4 {[%clk 0:01:54.9]} 32... g6 {[%clk 0:00:36.2]} 33. Kd3
{[%clk 0:01:50.9]} 33... Ke8 {[%clk 0:00:35.3]} 34. Kc2 {[%clk 0:01:42.1]} 34...
Kd7 {[%clk 0:00:33.9]} 35. Kd3 {[%clk 0:01:42.3]} 35... Kc7 {[%clk 0:00:33.1]}
36. Kc2 {[%clk 0:01:41.4]} 36... Kb7 {[%clk 0:00:33.3]} 37. Kb3 {[%clk
0:01:39.8]} 37... a5 {[%clk 0:00:28.3]} 38. Bd6 {[%clk 0:01:36.4]} 38... Ka6
{[%clk 0:00:28.4]} 39. Bf8 {[%clk 0:01:14]} 39... b5 {[%clk 0:00:28.3]} 40. Bd6
{[%clk 0:01:13.7]} 40... Na7 {[%clk 0:00:25.4]} 41. Bc5 {[%clk 0:01:02.5]} 41...
bxa4+ {[%clk 0:00:22.6]} 42. Kxa4 {[%clk 0:01:03.4]} 42... Nb5 {[%clk
0:00:23.2]} 43. Kb3 {[%clk 0:01:03.9]} 43... a4+ {[%clk 0:00:21.7]} 44. Kb2
{[%clk 0:00:54.9]} 44... Ka5 {[%clk 0:00:21.2]} 45. Bb4+ {[%clk 0:00:55]} 45...
Kb6 {[%clk 0:00:21.6]} 46. Kc2 {[%clk 0:00:54.8]} 46... Nc7 {[%clk 0:00:18.2]}
47. Bd6 {[%clk 0:00:52]} 47... Na6 {[%clk 0:00:18]} 48. Kb2 {[%clk 0:00:50.4]}
48... Kb5 {[%clk 0:00:18.3]} 49. Ka3 {[%clk 0:00:49.9]} 49... Kc4 {[%clk
0:00:15]} 50. Kxa4 {[%clk 0:00:35.9]} 50... Kxc3 {[%clk 0:00:15.2]} 51. Kb5
{[%clk 0:00:36.1]} 51... Kxd4 {[%clk 0:00:15.2]} 52. Kxa6 {[%clk 0:00:36.3]}
52... Ke4 {[%clk 0:00:15.8]} 53. Kb5 {[%clk 0:00:33.2]} 53... Kxf4 {[%clk
0:00:15.4]} 54. Kc6 {[%clk 0:00:22.7]} 54... d4 {[%clk 0:00:14.9]} 55. Kd7
{[%clk 0:00:17.9]} 55... d3 {[%clk 0:00:15.1]} 56. Bb4 {[%clk 0:00:18.5]} 56...
Kxe5 {[%clk 0:00:15.5]} 57. Bc3+ {[%clk 0:00:18.8]} 57... Kd5 {[%clk 0:00:14.9]}
58. Ke7 {[%clk 0:00:19.4]} 58... f4 {[%clk 0:00:15.1]} 59. Kf6 {[%clk
0:00:19.2]} 59... f3 {[%clk 0:00:15.2]} 60. Kxg6 {[%clk 0:00:19.3]} 60... f2
{[%clk 0:00:15.3]} 61. Kh6 {[%clk 0:00:20]} 61... f1=Q {[%clk 0:00:15.5]} 62. g6
{[%clk 0:00:20.9]} 62... Qf4+ {[%clk 0:00:14.2]} 63. Kh7 {[%clk 0:00:21.2]}
63... Qf5 {[%clk 0:00:14]} 64. Kh6 {[%clk 0:00:21.4]} 64... Qxh3 {[%clk
0:00:14.2]} 65. g7 {[%clk 0:00:22.3]} 65... Qe3+ {[%clk 0:00:14]} 66. Kh7 {[%clk
0:00:22.4]} 66... Qe4+ {[%clk 0:00:13.7]} 67. Kh8 {[%clk 0:00:23.3]} 67... Qg4
{[%clk 0:00:11.4]} 68. Be1 {[%clk 0:00:22]} 68... e5 {[%clk 0:00:09.8]} 69. Kh7
{[%clk 0:00:21.2]} 69... e4 {[%clk 0:00:09.8]} 70. Bd2 {[%clk 0:00:21.5]} 70...
h4 {[%clk 0:00:09.9]} 71. Bf4 {[%clk 0:00:21.5]} 71... h3 {[%clk 0:00:08]} 72.
Kh8 {[%clk 0:00:20.7]} 72... Qxg7+ {[%clk 0:00:06.7]} 73. Kxg7 {[%clk
0:00:20.9]} 73... e3 {[%clk 0:00:07.3]} 74. Bh2 {[%clk 0:00:21.8]} 74... e2
{[%clk 0:00:07.3]} 75. Kf6 {[%clk 0:00:21.8]} 75... d2 {[%clk 0:00:07.6]} 76.
Kf5 {[%clk 0:00:22.7]} 76... e1=Q {[%clk 0:00:07.9]} 77. Kg4 {[%clk 0:00:23.6]}
77... Qf1 {[%clk 0:00:07.5]} 78. Bg3 {[%clk 0:00:23.2]} 78... Qg2 {[%clk
0:00:07.9]} 79. Kh4 {[%clk 0:00:24]} 79... d1=Q {[%clk 0:00:07.8]} 0-1

[Event "Late-Titled-Tuesday-Blitz-March-19-2024"]
[Site "Chess.com"]
[Date "2024.03.19"]
[Round "1"]
[White "karinachess1"]
[Black "carloseduar100"]
[Result "1-0"]
[WhiteElo "2614"]
[BlackElo "2253"]
[TimeControl "180+1"]
[EndTime "14:08:58 PDT"]
[Termination "karinachess1 won on time"]

1. d4 {[%clk 0:03:00.9]} 1... d5 {[%clk 0:02:54.9]} 2. c4 {[%clk 0:03:01.1]}
2... e5 {[%clk 0:02:54.7]} 3. dxe5 {[%clk 0:03:00.2]} 3... d4 {[%clk 0:02:55.6]}
4. Nf3 {[%clk 0:02:59.4]} 4... Nc6 {[%clk 0:02:54.3]} 5. a3 {[%clk 0:03:00]}
5... Nge7 {[%clk 0:02:51.6]} 6. Nbd2 {[%clk 0:02:59.7]} 6... Ng6 {[%clk
0:02:47]} 7. Nb3 {[%clk 0:02:59.9]} 7... Ngxe5 {[%clk 0:02:43.9]} 8. Nxe5 {[%clk
0:02:55.3]} 8... Nxe5 {[%clk 0:02:43.4]} 9. Nxd4 {[%clk 0:02:55.9]} 9... Bd7
{[%clk 0:02:17.8]} 10. e3 {[%clk 0:02:51.9]} 10... Qh4 {[%clk 0:02:16.1]} 11.
Be2 {[%clk 0:02:41.2]} 11... O-O-O {[%clk 0:02:15.1]} 12. O-O {[%clk 0:02:36.9]}
12... Bd6 {[%clk 0:02:01.7]} 13. f4 {[%clk 0:02:31.2]} 13... Ng4 {[%clk
0:01:59.8]} 14. Nf3 {[%clk 0:02:27.9]} 14... Qe7 {[%clk 0:01:53.8]} 15. Qb3
{[%clk 0:01:53.8]} 15... Bc5 {[%clk 0:01:48.7]} 16. Nd4 {[%clk 0:01:47.3]} 16...
Qh4 {[%clk 0:01:39.3]} 17. Bxg4 {[%clk 0:01:44]} 17... Bxg4 {[%clk 0:01:40.2]}
18. Qc3 {[%clk 0:01:27.7]} 18... Rhe8 {[%clk 0:01:39.1]} 19. Bd2 {[%clk
0:01:27.9]} 19... Rd6 {[%clk 0:01:03.5]} 20. Be1 {[%clk 0:01:12.4]} 20... Qe7
{[%clk 0:01:00.1]} 21. b4 {[%clk 0:01:08.2]} 21... Qxe3+ {[%clk 0:00:52.5]} 22.
Qxe3 {[%clk 0:01:06.9]} 22... Rxe3 {[%clk 0:00:53.4]} 23. bxc5 {[%clk
0:01:01.9]} 23... Rxd4 {[%clk 0:00:52.9]} 24. Bf2 {[%clk 0:01:02.2]} 24... Ree4
{[%clk 0:00:45.5]} 25. Bxd4 {[%clk 0:01:01.8]} 25... Rxd4 {[%clk 0:00:46.4]} 26.
Rac1 {[%clk 0:00:59.4]} 26... Be6 {[%clk 0:00:46]} 27. g3 {[%clk 0:00:53.6]}
27... Bxc4 {[%clk 0:00:26]} 28. Rfd1 {[%clk 0:00:53.4]} 28... Re4 {[%clk
0:00:26.4]} 29. Re1 {[%clk 0:00:52.1]} 29... Rxe1+ {[%clk 0:00:19.8]} 30. Rxe1
{[%clk 0:00:53]} 30... Kd7 {[%clk 0:00:20]} 31. Kf2 {[%clk 0:00:42.9]} 31... g6
{[%clk 0:00:19.8]} 32. Ke3 {[%clk 0:00:39.9]} 32... h5 {[%clk 0:00:19.2]} 33.
Kd4 {[%clk 0:00:40.2]} 33... Be6 {[%clk 0:00:19.8]} 34. Re5 {[%clk 0:00:28]}
34... Kc6 {[%clk 0:00:19.7]} 35. Re1 {[%clk 0:00:24.5]} 35... b6 {[%clk
0:00:18.2]} 36. cxb6 {[%clk 0:00:22.9]} 36... axb6 {[%clk 0:00:18.3]} 37. Rc1+
{[%clk 0:00:22.6]} 37... Kd6 {[%clk 0:00:18.5]} 38. Rd1 {[%clk 0:00:19.9]} 38...
c5+ {[%clk 0:00:18.5]} 39. Ke4+ {[%clk 0:00:20.5]} 39... Kc6 {[%clk 0:00:19.4]}
40. Ke5 {[%clk 0:00:20.7]} 40... b5 {[%clk 0:00:19.6]} 41. Rb1 {[%clk 0:00:19]}
41... Bc4 {[%clk 0:00:18.5]} 42. Rb2 {[%clk 0:00:18.1]} 42... Be6 {[%clk
0:00:18.4]} 43. Rb1 {[%clk 0:00:17.1]} 43... Bc4 {[%clk 0:00:18.6]} 44. f5
{[%clk 0:00:14.8]} 44... gxf5 {[%clk 0:00:17.4]} 45. Rb2 {[%clk 0:00:15.4]}
45... Be6 {[%clk 0:00:16.8]} 46. Kf6 {[%clk 0:00:15.9]} 46... Bc4 {[%clk
0:00:14.1]} 47. Kg5 {[%clk 0:00:12]} 47... Be6 {[%clk 0:00:11.5]} 48. Kxh5
{[%clk 0:00:12.4]} 48... c4 {[%clk 0:00:12.4]} 49. Kg5 {[%clk 0:00:11.7]} 49...
Kc5 {[%clk 0:00:12.5]} 50. h4 {[%clk 0:00:11.1]} 50... c3 {[%clk 0:00:13]} 51.
Rc2 {[%clk 0:00:10.6]} 51... Kc4 {[%clk 0:00:13.7]} 52. h5 {[%clk 0:00:11.1]}
52... Kd3 {[%clk 0:00:14.1]} 53. Rxc3+ {[%clk 0:00:08.5]} 53... Kxc3 {[%clk
0:00:15]} 54. h6 {[%clk 0:00:09.3]} 54... f6+ {[%clk 0:00:14.1]} 55. Kxf6 {[%clk
0:00:09.5]} 55... Bg8 {[%clk 0:00:14.7]} 56. Kg7 {[%clk 0:00:10.1]} 56... Bd5
{[%clk 0:00:12.9]} 57. h7 {[%clk 0:00:09.6]} 57... Kb3 {[%clk 0:00:11.8]} 58.
h8=Q {[%clk 0:00:09.2]} 58... Kxa3 {[%clk 0:00:12.1]} 59. Qf8+ {[%clk
0:00:07.9]} 59... b4 {[%clk 0:00:11]} 60. Qxf5 {[%clk 0:00:08.3]} 60... Bc4
{[%clk 0:00:09.3]} 61. Qa5+ {[%clk 0:00:08.4]} 61... Kb3 {[%clk 0:00:09.1]} 62.
g4 {[%clk 0:00:08.8]} 62... Kc3 {[%clk 0:00:09.4]} 63. g5 {[%clk 0:00:09.1]}
63... Kb3 {[%clk 0:00:07.3]} 64. Kf6 {[%clk 0:00:06.7]} 64... Kc3 {[%clk
0:00:05.3]} 65. g6 {[%clk 0:00:07.1]} 65... Bb3 {[%clk 0:00:05.5]} 66. g7 {[%clk
0:00:07.1]} 66... Bc4 {[%clk 0:00:05.9]} 67. Ke5 {[%clk 0:00:07.4]} 67... Bg8
{[%clk 0:00:03.1]} 68. Kd6 {[%clk 0:00:07.1]} 68... Kc4 {[%clk 0:00:02.1]} 69.
Qc5+ {[%clk 0:00:07.4]} 69... Kb3 {[%clk 0:00:02.1]} 70. Qd5+ {[%clk 0:00:06.2]}
70... Bxd5 {[%clk 0:00:01.3]} 71. Kxd5 {[%clk 0:00:07.1]} 71... Kc3 {[%clk
0:00:01.8]} 72. g8=Q {[%clk 0:00:08]} 72... b3 {[%clk 0:00:02.4]} 73. Qg3+
{[%clk 0:00:08.3]} 73... Kc2 {[%clk 0:00:02.5]} 74. Kc4 {[%clk 0:00:08.3]} 74...
b2 {[%clk 0:00:02.9]} 75. Qc3+ {[%clk 0:00:08.3]} 75... Kb1 {[%clk 0:00:03.4]}
76. Kb3 {[%clk 0:00:08.5]} 1-0

[Event "Late-Titled-Tuesday-Blitz-March-19-2024"]
[Site "Chess.com"]
[Date "2024.03.19"]
[Round "1"]
[White "Orest_Vovk"]
[Black "MikaelyanArman"]
[Result "1/2-1/2"]
[WhiteElo "2506"]
[BlackElo "2844"]
[TimeControl "180+1"]
[EndTime "14:09:05 PDT"]
[Termination "Game drawn - insufficient material"]

1. h4 {[%clk 0:02:52.4]} 1... d5 {[%clk 0:02:57]} 2. h5 {[%clk 0:02:52.2]} 2...
e5 {[%clk 0:02:56.9]} 3. h6 {[%clk 0:02:51.9]} 3... Nxh6 {[%clk 0:02:56.8]} 4.
d4 {[%clk 0:02:52.1]} 4... Nf5 {[%clk 0:02:35.4]} 5. dxe5 {[%clk 0:02:51.5]}
5... Nc6 {[%clk 0:02:36.1]} 6. e4 {[%clk 0:02:39.1]} 6... dxe4 {[%clk
0:02:35.7]} 7. Qxd8+ {[%clk 0:02:39.1]} 7... Kxd8 {[%clk 0:02:23.7]} 8. Nc3
{[%clk 0:02:36.3]} 8... Nxe5 {[%clk 0:02:15.8]} 9. Nxe4 {[%clk 0:02:32.9]} 9...
Be6 {[%clk 0:02:08.2]} 10. Bg5+ {[%clk 0:02:31.4]} 10... Be7 {[%clk 0:02:00.2]}
11. O-O-O+ {[%clk 0:02:30.2]} 11... Kc8 {[%clk 0:01:53.3]} 12. Bxe7 {[%clk
0:02:23.9]} 12... Nxe7 {[%clk 0:01:54.2]} 13. Ng5 {[%clk 0:02:20.3]} 13... Bf5
{[%clk 0:01:08.2]} 14. f3 {[%clk 0:01:40.3]} 14... f6 {[%clk 0:01:05.7]} 15. Re1
{[%clk 0:01:31.8]} 15... N7c6 {[%clk 0:01:02]} 16. N5h3 {[%clk 0:01:24.7]} 16...
Rd8 {[%clk 0:00:56.7]} 17. g4 {[%clk 0:01:21.6]} 17... Bg6 {[%clk 0:00:54.1]}
18. Nf4 {[%clk 0:01:20.5]} 18... h6 {[%clk 0:00:40.8]} 19. Nxg6 {[%clk
0:01:17.1]} 19... Nxg6 {[%clk 0:00:41.7]} 20. Bd3 {[%clk 0:01:16.8]} 20... Nf4
{[%clk 0:00:31.3]} 21. Bf5+ {[%clk 0:01:14.4]} 21... Kb8 {[%clk 0:00:31.8]} 22.
Ne2 {[%clk 0:01:06.5]} 22... Nxe2+ {[%clk 0:00:31.7]} 23. Rxe2 {[%clk
0:01:06.5]} 23... a5 {[%clk 0:00:32.6]} 24. Re6 {[%clk 0:00:56.2]} 24... Ka7
{[%clk 0:00:32.3]} 25. Be4 {[%clk 0:00:53.4]} 25... Rd6 {[%clk 0:00:30.3]} 26.
Rxd6 {[%clk 0:00:49.5]} 26... cxd6 {[%clk 0:00:31.2]} 27. Bxc6 {[%clk
0:00:49.2]} 27... bxc6 {[%clk 0:00:32.1]} 28. Re1 {[%clk 0:00:48.6]} 28... Kb6
{[%clk 0:00:31.7]} 29. Re7 {[%clk 0:00:42.3]} 29... Ra7 {[%clk 0:00:31.9]} 30.
Re8 {[%clk 0:00:42.7]} 30... Kc5 {[%clk 0:00:28.8]} 31. Kd2 {[%clk 0:00:40.6]}
31... d5 {[%clk 0:00:28.6]} 32. Kd3 {[%clk 0:00:35.7]} 32... a4 {[%clk 0:00:29]}
33. b3 {[%clk 0:00:32.8]} 33... axb3 {[%clk 0:00:26.2]} 34. axb3 {[%clk
0:00:32.7]} 34... Kd6 {[%clk 0:00:21.4]} 35. b4 {[%clk 0:00:28.8]} 35... Ra3+
{[%clk 0:00:20.5]} 36. c3 {[%clk 0:00:28.5]} 36... Ra1 {[%clk 0:00:20.9]} 37.
Rg8 {[%clk 0:00:28.2]} 37... Ra7 {[%clk 0:00:16]} 38. Rd8+ {[%clk 0:00:27.8]}
38... Rd7 {[%clk 0:00:15.6]} 39. Re8 {[%clk 0:00:26.5]} 39... Re7 {[%clk
0:00:14.6]} 40. Rd8+ {[%clk 0:00:26.6]} 40... Ke5 {[%clk 0:00:15]} 41. Ke3
{[%clk 0:00:23]} 41... f5 {[%clk 0:00:12.1]} 42. Rc8 {[%clk 0:00:21.2]} 42...
fxg4 {[%clk 0:00:11.9]} 43. fxg4 {[%clk 0:00:21.1]} 43... Kd6+ {[%clk
0:00:11.6]} 44. Kf3 {[%clk 0:00:20.8]} 44... Rf7+ {[%clk 0:00:11.8]} 45. Ke3
{[%clk 0:00:20.2]} 45... Rf6 {[%clk 0:00:12]} 46. Rg8 {[%clk 0:00:19.1]} 46...
Re6+ {[%clk 0:00:12.6]} 47. Kf3 {[%clk 0:00:19.2]} 47... Rf6+ {[%clk 0:00:12.2]}
48. Ke3 {[%clk 0:00:17.6]} 48... g5 {[%clk 0:00:11.8]} 49. Rd8+ {[%clk
0:00:16.8]} 49... Kc7 {[%clk 0:00:11]} 50. Rh8 {[%clk 0:00:16.4]} 50... Kb6
{[%clk 0:00:11.6]} 51. Rb8+ {[%clk 0:00:16.4]} 51... Ka7 {[%clk 0:00:10.3]} 52.
Rc8 {[%clk 0:00:15.4]} 52... Kb7 {[%clk 0:00:10.8]} 53. Rh8 {[%clk 0:00:13.5]}
53... Rf4 {[%clk 0:00:10.9]} 54. Rxh6 {[%clk 0:00:11.9]} 54... Rxg4 {[%clk
0:00:11.5]} 55. b5 {[%clk 0:00:10.9]} 55... cxb5 {[%clk 0:00:10.2]} 56. Rd6
{[%clk 0:00:11.4]} 56... Rc4 {[%clk 0:00:05.9]} 57. Kd3 {[%clk 0:00:07.4]} 57...
g4 {[%clk 0:00:03.6]} 58. Rxd5 {[%clk 0:00:06.5]} 58... Kb6 {[%clk 0:00:04.2]}
59. Rg5 {[%clk 0:00:06.5]} 59... Ka5 {[%clk 0:00:04.4]} 60. Rg8 {[%clk
0:00:06.2]} 60... Ka4 {[%clk 0:00:05]} 61. Kc2 {[%clk 0:00:03]} 61... Ka5 {[%clk
0:00:04.8]} 62. Ra8+ {[%clk 0:00:03]} 62... Kb6 {[%clk 0:00:05.4]} 63. Rg8
{[%clk 0:00:02.3]} 63... Kc6 {[%clk 0:00:05.7]} 64. Kd3 {[%clk 0:00:02.5]} 64...
Kd6 {[%clk 0:00:06.2]} 65. Rg6+ {[%clk 0:00:02.7]} 65... Kc5 {[%clk 0:00:03]}
66. Rg8 {[%clk 0:00:03.6]} 66... Kb6 {[%clk 0:00:02.7]} 67. Ra8 {[%clk
0:00:03.4]} 67... Rf4 {[%clk 0:00:02.6]} 68. Rb8+ {[%clk 0:00:02.8]} 68... Kc6
{[%clk 0:00:02.7]} 69. Rc8+ {[%clk 0:00:03]} 69... Kd6 {[%clk 0:00:03.1]} 70.
Rg8 {[%clk 0:00:03.9]} 70... Rf3+ {[%clk 0:00:03.3]} 71. Kd4 {[%clk 0:00:03.8]}
71... Rg3 {[%clk 0:00:03.5]} 72. Rg5 {[%clk 0:00:03]} 72... Rg1 {[%clk
0:00:02.9]} 73. Rxb5 {[%clk 0:00:02.8]} 73... g3 {[%clk 0:00:03.5]} 74. Ke3
{[%clk 0:00:03.1]} 74... Rf1 {[%clk 0:00:03.2]} 75. Rg5 {[%clk 0:00:02.4]} 75...
Rc1 {[%clk 0:00:02.9]} 76. Kf3 {[%clk 0:00:02.3]} 76... Rxc3+ {[%clk 0:00:03.1]}
77. Kg2 {[%clk 0:00:03.2]} 77... Ke6 {[%clk 0:00:03.3]} 78. Rxg3 {[%clk
0:00:04.1]} 78... Rc2+ {[%clk 0:00:03.7]} 79. Kh3 {[%clk 0:00:03.8]} 79... Kf5
{[%clk 0:00:04]} 80. Rg2 {[%clk 0:00:04.4]} 80... Rc3+ {[%clk 0:00:04]} 81. Rg3
{[%clk 0:00:04.8]} 81... Rxg3+ {[%clk 0:00:03.7]} 82. Kxg3 {[%clk 0:00:04.5]}
1/2-1/2